fUSD/lending_fUSD_20240331
["ID","MTS","AMOUNT","RATE_DAILY","PERIOD"]
[321113215,1711900303091,-300.0,0.00055373,14]
[321113216,1711900303101,-300.0,0.00055374,14]
[321113217,1711900303110,-999.52,0.0005538,2]
[321113218,1711900303120,-150.0,0.00055387,14]
[321113219,1711900303130,-300.0,0.00055393,14]
[321113220,1711900303140,-150.0,0.00055419,14]
[321113221,1711900303150,-300.0,0.00055419,14]
[321113222,1711900303160,-150.0,0.00055428,14]
[321113223,1711900303170,-150.0,0.00055442,14]
[321113224,1711900303179,-302.065412,0.00055448,109]
[321113225,1711900303188,-150.0,0.00055451,14]
[321113226,1711900303198,-1500.0,0.00055482,14]
[321113227,1711900303207,-453.098124,0.00055498,108]
[321113228,1711900303217,-300.0,0.00055505,14]
[321113229,1711900303226,-1500.0,0.00055515,14]
[321113230,1711900303235,-150.0,0.00055516,14]
[321113231,1711900303244,-1500.0,0.00055519,14]
[321113232,1711900303253,-312.3126837,0.00055526,14]
[321113233,1711900303264,-302.71987203,0.00055532,14]
[321113234,1711900303276,-250.85709059,0.00055549,14]
[321113235,1711900303286,-300.0,0.00055557,14]
[321113236,1711900303295,-150.0,0.00055563,14]
[321113237,1711900303306,-150.0,0.00055569,14]
[321113238,1711900303316,-165.77109563,0.00055569,120]
[321113239,1711900303325,-1500.0,0.00055571,14]
[321113240,1711900303335,-150.0,0.00055575,14]
[321113241,1711900303345,-1500.0,0.00055595,14]
[321113242,1711900303355,-151.0,0.000556,120]
[321113243,1711900303364,-151.0,0.000556,120]
[321113244,1711900303373,-151.0,0.000556,120]
[321113245,1711900303383,-151.0,0.000556,7]
[321113246,1711900303392,-498.970001,0.000556,60]
[321113247,1711900303401,-498.970001,0.000556,60]
[321113248,1711900303410,-151.0,0.000556,120]
[321113249,1711900303419,-151.0,0.000556,120]
[321113250,1711900303428,-151.0,0.000556,120]
[321113251,1711900303438,-151.0,0.000556,120]
[321113252,1711900303447,-20000.0,0.000556,120]
[321113253,1711900303456,-151.0,0.000556,120]
[321113254,1711900303465,-188.385358,0.000556,120]
[321113255,1711900303474,-151.0,0.000556,7]
[321113256,1711900303483,-188.385358,0.000556,120]
[321113257,1711900303493,-151.0,0.000556,120]
[321113258,1711900303502,-202.687806,0.000556,120]
[321113259,1711900303511,-202.687806,0.000556,120]
[321113260,1711900303522,-4948.2407778,0.00055607,2]
[321113261,1711900303531,-174.0080649,0.00055614,2]
[321113262,1711900303540,-2062.8716925,0.00055614,2]
[321113263,1711900303549,-426.37998166,0.00055616,120]
[321113264,1711900303559,-500.0,0.00055616,120]
[321113265,1711900303568,-500.0,0.00055616,120]
[321113266,1711900303578,-434.84607801,0.00055616,120]
[321113267,1711900303587,-500.0,0.00055616,120]
[321113268,1711900303596,-500.0,0.00055616,120]
[321113269,1711900303606,-528.40395772,0.00055616,120]
[321113270,1711900303615,-500.0,0.00055616,120]
[321113271,1711900303625,-500.0,0.00055616,120]
[321113272,1711900303634,-1239.43,0.00055616,120]
[321113273,1711900303643,-500.0,0.00055616,120]
[321113274,1711900303653,-500.0,0.00055616,120]
[321113275,1711900303662,-500.0,0.00055616,120]
[321113276,1711900303672,-500.0,0.00055616,120]
[321113277,1711900303681,-231.74565226,0.00055616,120]
[321113278,1711900303691,-664.59,0.00055616,2]
[321113279,1711900303701,-500.0,0.00055616,120]
[321113280,1711900303711,-500.0,0.00055616,120]
[321113281,1711900303720,-500.0,0.00055616,120]
[321113282,1711900303730,-500.0,0.00055616,120]
[321113283,1711900303740,-441.89499757,0.00055616,120]
[321113284,1711900303750,-500.0,0.00055616,120]
[321113285,1711900303764,-500.0,0.00055616,120]
[321113286,1711900303774,-500.0,0.00055616,120]
[321113287,1711900303784,-500.0,0.00055616,120]
[321113288,1711900303793,-500.0,0.00055616,120]
[321113289,1711900303803,-500.0,0.00055616,120]
[321113290,1711900303813,-500.0,0.00055616,120]
[321113291,1711900303821,-500.0,0.00055616,120]
[321113292,1711900303831,-500.0,0.00055616,120]
[321113293,1711900303840,-500.0,0.00055616,120]
[321113294,1711900303849,-513.77115201,0.00055616,120]
[321113295,1711900303859,-500.0,0.00055616,120]
[321113296,1711900303868,-500.0,0.00055616,120]
[321113297,1711900303878,-500.0,0.00055616,120]
[321113298,1711900303887,-500.0,0.00055616,120]
[321113299,1711900303897,-500.0,0.00055616,120]
[321113300,1711900303907,-500.0,0.00055616,120]
[321113301,1711900303916,-500.0,0.00055616,120]
[321113302,1711900303926,-500.0,0.00055616,120]
[321113303,1711900303935,-500.0,0.00055616,120]
[321113304,1711900304109,-500.0,0.00055616,120]
[321113305,1711900304120,-500.0,0.00055616,120]
[321113306,1711900304129,-500.0,0.00055616,120]
[321113307,1711900304138,-500.0,0.00055616,120]
[321113308,1711900304147,-527.64,0.00055616,120]
[321113309,1711900304156,-500.0,0.00055616,120]
[321113310,1711900304166,-500.0,0.00055616,120]
[321113311,1711900304175,-500.0,0.00055616,120]
[321113312,1711900304185,-376.0,0.00055616,120]
[321113313,1711900304194,-500.0,0.00055616,120]
[321113314,1711900304203,-617.33847191,0.00055616,120]
[321113315,1711900304212,-500.0,0.00055616,120]
[321113316,1711900304222,-500.0,0.00055616,120]
[321113317,1711900304231,-500.0,0.00055616,120]
[321113318,1711900304241,-500.0,0.00055616,2]
[321113319,1711900304250,-500.0,0.00055616,120]
[321113320,1711900304261,-500.0,0.00055616,120]
[321113321,1711900304274,-500.0,0.00055616,120]
[321113322,1711900304283,-500.0,0.00055616,120]
[321113323,1711900304293,-500.0,0.00055616,120]
[321113324,1711900304303,-500.0,0.00055616,120]
[321113325,1711900304313,-500.0,0.00055616,120]
[321113326,1711900304322,-500.0,0.00055616,120]
[321113327,1711900304332,-500.0,0.00055616,120]
[321113328,1711900304342,-500.0,0.00055616,120]
[321113329,1711900304352,-500.0,0.00055616,120]
[321113330,1711900304362,-198.749462,0.00055616,120]
[321113331,1711900304371,-500.0,0.00055616,120]
[321113332,1711900304381,-500.0,0.00055616,120]
[321113333,1711900304390,-500.0,0.00055616,120]
[321113334,1711900304399,-500.0,0.00055616,120]
[321113335,1711900304408,-500.0,0.00055616,120]
[321113336,1711900304417,-500.0,0.00055616,120]
[321113337,1711900304427,-500.0,0.00055616,120]
[321113338,1711900304436,-500.0,0.00055616,120]
[321113339,1711900304445,-500.0,0.00055616,120]
[321113340,1711900304455,-500.0,0.00055616,120]
[321113341,1711900304464,-500.0,0.00055616,120]
[321113342,1711900304473,-500.0,0.00055616,120]
[321113343,1711900304482,-500.0,0.00055616,120]
[321113344,1711900304492,-500.0,0.00055616,120]
[321113345,1711900304501,-500.0,0.00055616,120]
[321113346,1711900304510,-500.0,0.00055616,120]
[321113347,1711900304520,-500.0,0.00055616,120]
[321113348,1711900304529,-500.0,0.00055616,120]
[321113349,1711900304539,-500.0,0.00055616,120]
[321113350,1711900304548,-500.0,0.00055616,120]
[321113351,1711900304556,-500.0,0.00055616,120]
[321113352,1711900304566,-500.0,0.00055616,120]
[321113353,1711900304576,-500.0,0.00055616,120]
[321113354,1711900304585,-500.0,0.00055616,120]
[321113355,1711900304594,-500.0,0.00055616,120]
[321113356,1711900304604,-500.0,0.00055616,120]
[321113357,1711900304614,-500.0,0.00055616,120]
[321113358,1711900304623,-500.0,0.00055616,120]
[321113359,1711900304632,-500.0,0.00055616,120]
[321113360,1711900304641,-500.0,0.00055616,120]
[321113361,1711900304651,-500.0,0.00055616,120]
[321113362,1711900304660,-500.0,0.00055616,120]
[321113363,1711900304669,-500.0,0.00055616,120]
[321113364,1711900304678,-500.0,0.00055616,120]
[321113365,1711900304687,-500.0,0.00055616,120]
[321113366,1711900304697,-500.0,0.00055616,120]
[321113367,1711900304706,-500.0,0.00055616,120]
[321113368,1711900304715,-500.0,0.00055616,120]
[321113369,1711900304724,-500.0,0.00055616,120]
[321113370,1711900304733,-500.0,0.00055616,120]
[321113371,1711900304742,-500.0,0.00055616,120]
[321113372,1711900304751,-194.51097774,0.00055616,120]
[321113373,1711900304761,-500.0,0.00055616,120]
[321113374,1711900304770,-500.0,0.00055616,120]
[321113375,1711900304779,-500.0,0.00055616,120]
[321113376,1711900304788,-500.0,0.00055616,120]
[321113377,1711900304797,-500.0,0.00055616,120]
[321113378,1711900304806,-500.0,0.00055616,120]
[321113379,1711900304815,-500.0,0.00055616,120]
[321113380,1711900304825,-500.0,0.00055616,120]
[321113381,1711900304833,-636.48327268,0.00055616,120]
[321113382,1711900304842,-500.0,0.00055616,120]
[321113383,1711900304852,-500.0,0.00055616,120]
[321113384,1711900304861,-500.0,0.00055616,120]
[321113385,1711900304870,-500.0,0.00055616,120]
[321113386,1711900304880,-500.0,0.00055616,120]
[321113387,1711900304889,-500.0,0.00055616,120]
[321113388,1711900304898,-1476.31,0.00055616,120]
[321113389,1711900304907,-500.0,0.00055616,120]
[321113390,1711900304917,-434.39914989,0.00055616,120]
[321113391,1711900304926,-151.0,0.00055616,120]
[321113392,1711900304935,-500.0,0.00055616,120]
[321113393,1711900304944,-500.0,0.00055616,120]
[321113394,1711900304954,-500.0,0.00055616,120]
[321113395,1711900304964,-500.0,0.00055616,120]
[321113396,1711900304973,-500.0,0.00055616,120]
[321113397,1711900304982,-500.0,0.00055616,120]
[321113398,1711900304992,-151.0,0.00055616,120]
[321113399,1711900305001,-500.0,0.00055616,120]
[321113400,1711900305010,-500.0,0.00055616,120]
[321113401,1711900305020,-500.0,0.00055616,120]
[321113402,1711900305030,-536.73,0.00055616,120]
[321113403,1711900305039,-151.0,0.00055616,120]
[321113404,1711900305048,-500.0,0.00055616,120]
[321113405,1711900305058,-500.0,0.00055616,120]
[321113406,1711900305067,-794.23,0.00055616,120]
[321113407,1711900305077,-500.0,0.00055616,120]
[321113408,1711900305086,-500.0,0.00055616,120]
[321113409,1711900305095,-517.2779124,0.00055616,120]
[321113410,1711900305105,-500.0,0.00055616,120]
[321113411,1711900305115,-500.0,0.00055616,60]
[321113412,1711900305125,-500.0,0.00055616,120]
[321113413,1711900305134,-500.0,0.00055616,120]
[321113414,1711900305143,-500.0,0.00055616,120]
[321113415,1711900305152,-500.0,0.00055616,120]
[321113416,1711900305161,-500.0,0.00055616,120]
[321113417,1711900305170,-500.0,0.00055616,120]
[321113418,1711900305180,-726.96,0.00055616,120]
[321113419,1711900305190,-500.0,0.00055616,50]
[321113420,1711900305200,-500.0,0.00055616,120]
[321113421,1711900305209,-500.0,0.00055616,120]
[321113422,1711900305219,-500.0,0.00055616,120]
[321113423,1711900305228,-500.0,0.00055616,120]
[321113424,1711900305237,-500.0,0.00055616,120]
[321113425,1711900305246,-500.0,0.00055616,120]
[321113426,1711900305255,-506.05793455,0.00055616,120]
[321113427,1711900305269,-753.06,0.00055616,120]
[321113428,1711900305278,-500.0,0.00055616,120]
[321113429,1711900305288,-500.0,0.00055616,120]
[321113430,1711900305298,-741.95,0.00055616,120]
[321113431,1711900305307,-500.0,0.00055616,120]
[321113432,1711900305317,-500.0,0.00055616,120]
[321113433,1711900305327,-500.0,0.00055616,120]
[321113434,1711900305336,-500.0,0.00055616,120]
[321113435,1711900305346,-500.0,0.00055616,120]
[321113436,1711900305356,-500.0,0.00055616,120]
[321113437,1711900305366,-500.0,0.00055616,120]
[321113438,1711900305375,-500.0,0.00055616,120]
[321113439,1711900305384,-500.0,0.00055616,120]
[321113440,1711900305394,-500.0,0.00055616,120]
[321113441,1711900305403,-500.0,0.00055616,120]
[321113442,1711900305412,-500.0,0.00055616,120]
[321113443,1711900305422,-500.0,0.00055616,120]
[321113444,1711900305431,-500.0,0.00055616,120]
[321113445,1711900305441,-500.0,0.00055616,120]
[321113446,1711900305451,-500.0,0.00055616,120]
[321113447,1711900305461,-796.42,0.00055616,120]
[321113448,1711900305471,-500.0,0.00055616,120]
[321113449,1711900305481,-500.0,0.00055616,120]
[321113450,1711900305490,-500.0,0.00055616,120]
[321113451,1711900305500,-887.89,0.00055616,120]
[321113452,1711900305509,-500.0,0.00055616,120]
[321113453,1711900305520,-556.88,0.00055616,120]
[321113454,1711900305529,-646.48,0.00055616,120]
[321113455,1711900305539,-500.0,0.00055616,120]
[321113456,1711900305548,-500.0,0.00055616,120]
[321113457,1711900305557,-500.0,0.00055616,120]
[321113458,1711900305567,-500.0,0.00055616,120]
[321113459,1711900305577,-500.0,0.00055616,120]
[321113460,1711900305586,-1000.0,0.00055616,120]
[321113461,1711900305596,-514.92314586,0.00055616,120]
[321113462,1711900305606,-510.99,0.00055616,120]
[321113463,1711900305616,-500.0,0.00055616,120]
[321113464,1711900305625,-500.0,0.00055616,120]
[321113465,1711900305635,-849.94,0.00055616,120]
[321113466,1711900305645,-500.0,0.00055616,120]
[321113467,1711900305654,-500.0,0.00055616,120]
[321113468,1711900305663,-500.0,0.00055616,120]
[321113469,1711900305673,-500.0,0.00055616,120]
[321113470,1711900305682,-608.39,0.00055616,120]
[321113471,1711900305691,-500.0,0.00055616,120]
[321113472,1711900305701,-799.12,0.00055616,120]
[321113473,1711900305710,-500.0,0.00055616,120]
[321113474,1711900305719,-500.0,0.00055616,120]
[321113475,1711900305729,-500.0,0.00055616,120]
[321113476,1711900305738,-500.0,0.00055616,120]
[321113477,1711900305748,-500.0,0.00055616,120]
[321113478,1711900305758,-500.0,0.00055616,120]
[321113479,1711900305768,-500.0,0.00055616,120]
[321113480,1711900305777,-500.0,0.00055616,120]
[321113481,1711900305787,-500.0,0.00055616,120]
[321113482,1711900305796,-500.0,0.00055616,120]
[321113483,1711900305806,-500.0,0.00055616,120]
[321113484,1711900305816,-513.85098204,0.00055616,120]
[321113485,1711900305825,-500.0,0.00055616,120]
[321113486,1711900305834,-500.0,0.00055616,120]
[321113487,1711900305844,-500.0,0.00055616,120]
[321113488,1711900305853,-500.0,0.00055616,120]
[321113489,1711900305862,-883.96,0.00055616,120]
[321113490,1711900305871,-500.0,0.00055616,120]
[321113491,1711900305880,-500.0,0.00055616,120]
[321113492,1711900305890,-815.7,0.00055616,120]
[321113493,1711900305899,-500.0,0.00055616,120]
[321113494,1711900305908,-515.65335035,0.00055616,30]
[321113495,1711900305917,-500.0,0.00055616,120]
[321113496,1711900305928,-804.07,0.00055616,120]
[321113497,1711900305938,-503.1894979,0.00055616,120]
[321113498,1711900305947,-635.28,0.00055616,120]
[321113499,1711900305956,-508.48280846,0.00055616,120]
[321113500,1711900305965,-524.99784926,0.00055616,120]
[321113501,1711900305975,-500.0,0.00055616,120]
[321113502,1711900305985,-500.0,0.00055616,120]
[321113503,1711900305994,-509.51412581,0.00055616,120]
[321113504,1711900306003,-500.0,0.00055616,120]
[321113505,1711900306012,-500.0,0.00055616,120]
[321113506,1711900306021,-263.36281181,0.00055616,120]
[321113507,1711900306031,-959.19,0.00055616,120]
[321113508,1711900306040,-683.74,0.00055616,120]
[321113509,1711900306049,-510.41673009,0.00055616,120]
[321113510,1711900306059,-500.0,0.00055616,120]
[321113511,1711900306069,-500.0,0.00055616,120]
[321113512,1711900306079,-1061.5,0.00055616,120]
[321113513,1711900306089,-736.85,0.00055616,120]
[321113514,1711900306098,-500.0,0.00055616,120]
[321113515,1711900306108,-500.0,0.00055616,120]
[321113516,1711900306117,-500.0,0.00055616,120]
[321113517,1711900306126,-500.0,0.00055616,120]
[321113518,1711900306136,-500.0,0.00055616,120]
[321113519,1711900306145,-592.16,0.00055616,120]
[321113520,1711900306155,-500.0,0.00055616,120]
[321113521,1711900306164,-352.0433536,0.00055616,120]
[321113522,1711900306174,-576.63186749,0.00055616,120]
[321113523,1711900306184,-500.0,0.00055616,120]
[321113524,1711900306194,-500.0,0.00055616,120]
[321113525,1711900306203,-571.87,0.00055616,120]
[321113526,1711900306213,-500.0,0.00055616,16]
[321113527,1711900306222,-781.99,0.00055616,120]
[321113528,1711900306233,-500.0,0.00055616,120]
[321113529,1711900306242,-828.46,0.00055616,120]
[321113530,1711900306251,-500.0,0.00055616,120]
[321113531,1711900306263,-500.0,0.00055616,120]
[321113532,1711900306277,-500.0,0.00055616,120]
[321113533,1711900306286,-500.0,0.00055616,120]
[321113534,1711900306295,-500.0,0.00055616,120]
[321113535,1711900306305,-500.0,0.00055616,120]
[321113536,1711900306315,-500.0,0.00055616,120]
[321113537,1711900306324,-500.0,0.00055616,120]
[321113538,1711900306334,-504.85252023,0.00055616,120]
[321113539,1711900306345,-519.19,0.00055616,120]
[321113540,1711900306355,-680.37,0.00055616,120]
[321113541,1711900306365,-500.0,0.00055616,120]
[321113542,1711900306374,-735.71,0.00055616,120]
[321113543,1711900306383,-500.0,0.00055616,120]
[321113544,1711900306393,-500.0,0.00055616,120]
[321113545,1711900306401,-500.0,0.00055616,120]
[321113546,1711900306410,-514.58503764,0.00055616,120]
[321113547,1711900306420,-648.33,0.00055616,120]
[321113548,1711900306429,-500.0,0.00055616,2]
[321113549,1711900306438,-500.0,0.00055616,120]
[321113550,1711900306448,-189.97972729,0.00055616,120]
[321113551,1711900306457,-500.0,0.00055616,120]
[321113552,1711900306467,-597.59703738,0.00055616,120]
[321113553,1711900306476,-502.7646084,0.00055616,120]
[321113554,1711900306486,-500.0,0.00055616,120]
[321113555,1711900306495,-500.0,0.00055616,120]
[321113556,1711900306504,-680.7,0.00055616,120]
[321113557,1711900306514,-500.0,0.00055616,120]
[321113558,1711900306524,-500.0,0.00055616,120]
[321113559,1711900306534,-230.1259473,0.00055616,2]
[321113560,1711900306543,-500.0,0.00055616,120]
[321113561,1711900306552,-500.0,0.00055616,120]
[321113562,1711900306561,-1067.63,0.00055616,120]
[321113563,1711900306571,-617.46,0.00055616,120]
[321113564,1711900306580,-500.0,0.00055616,120]
[321113565,1711900306748,-500.0,0.00055616,120]
[321113566,1711900306758,-500.0,0.00055616,120]
[321113567,1711900306767,-500.0,0.00055616,120]
[321113568,1711900306777,-506.60780614,0.00055616,120]
[321113569,1711900306787,-500.0,0.00055616,120]
[321113570,1711900306796,-615.17,0.00055616,120]
[321113571,1711900306805,-509.95790148,0.00055616,120]
[321113572,1711900306814,-500.0,0.00055616,120]
[321113573,1711900306823,-753.46,0.00055616,120]
[321113574,1711900306833,-671.0,0.00055616,120]
[321113575,1711900306842,-742.98,0.00055616,120]
[321113576,1711900306852,-516.53821848,0.00055616,120]
[321113577,1711900306861,-643.40616933,0.00055616,120]
[321113578,1711900306871,-500.0,0.00055616,120]
[321113579,1711900306881,-579.39,0.00055616,120]
[321113580,1711900306890,-500.0,0.00055616,120]
[321113581,1711900306900,-759.51,0.00055616,120]
[321113582,1711900306909,-500.0,0.00055616,120]
[321113583,1711900306923,-500.0,0.00055616,120]
[321113584,1711900306933,-500.0,0.00055616,120]
[321113585,1711900306944,-500.0,0.00055616,120]
[321113586,1711900306953,-500.0,0.00055616,120]
[321113587,1711900306963,-500.0,0.00055616,120]
[321113588,1711900306973,-500.0,0.00055616,7]
[321113589,1711900306983,-500.0,0.00055616,120]
[321113590,1711900306993,-500.0,0.00055616,120]
[321113591,1711900307002,-500.0,0.00055616,120]
[321113592,1711900307012,-730.83,0.00055616,30]
[321113593,1711900307021,-562.36,0.00055616,120]
[321113594,1711900307031,-500.0,0.00055616,120]
[321113595,1711900307041,-500.0,0.00055616,120]
[321113596,1711900307051,-500.0,0.00055616,120]
[321113597,1711900307061,-500.0,0.00055616,120]
[321113598,1711900307071,-500.0,0.00055616,120]
[321113599,1711900307081,-591.57,0.00055616,120]
[321113600,1711900307091,-500.0,0.00055616,120]
[321113601,1711900307101,-754.29,0.00055616,120]
[321113602,1711900307110,-500.0,0.00055616,120]
[321113603,1711900307119,-500.0,0.00055616,120]
[321113604,1711900307129,-544.56,0.00055616,120]
[321113605,1711900307139,-500.0,0.00055616,120]
[321113606,1711900307148,-500.0,0.00055616,120]
[321113607,1711900307163,-563.24,0.00055616,120]
[321113608,1711900307173,-500.0,0.00055616,120]
[321113609,1711900307183,-500.0,0.00055616,120]
[321113610,1711900307194,-500.0,0.00055616,120]
[321113611,1711900307204,-519.11428301,0.00055616,120]
[321113612,1711900307214,-500.0,0.00055616,120]
[321113613,1711900307225,-662.41,0.00055616,120]
[321113614,1711900307235,-995.44,0.00055616,120]
[321113615,1711900307245,-500.0,0.00055616,120]
[321113616,1711900307255,-500.0,0.00055616,120]
[321113617,1711900307267,-500.0,0.00055616,120]
[321113618,1711900307278,-500.0,0.00055616,120]
[321113619,1711900307288,-500.0,0.00055616,120]
[321113620,1711900307298,-500.0,0.00055616,120]
[321113621,1711900307308,-500.0,0.00055616,120]
[321113622,1711900307318,-629.64,0.00055616,120]
[321113623,1711900307328,-500.0,0.00055616,120]
[321113624,1711900307339,-531.25,0.00055616,120]
[321113625,1711900307350,-500.0,0.00055616,30]
[321113626,1711900307361,-543.59,0.00055616,120]
[321113627,1711900307371,-500.0,0.00055616,120]
[321113628,1711900307381,-500.0,0.00055616,120]
[321113629,1711900307391,-761.88,0.00055616,120]
[321113630,1711900307402,-500.0,0.00055616,120]
[321113631,1711900307412,-500.0,0.00055616,120]
[321113632,1711900307422,-711.25,0.00055616,120]
[321113633,1711900307432,-500.0,0.00055616,120]
[321113634,1711900307442,-646.54,0.00055616,120]
[321113635,1711900307453,-500.0,0.00055616,120]
[321113636,1711900307463,-1048.22,0.00055616,120]
[321113637,1711900307474,-500.0,0.00055616,120]
[321113638,1711900307484,-500.0,0.00055616,120]
[321113639,1711900307495,-513.40591597,0.00055616,120]
[321113640,1711900307504,-518.22031084,0.00055616,120]
[321113641,1711900307515,-500.0,0.00055616,120]
[321113642,1711900307525,-500.0,0.00055616,120]
[321113643,1711900307536,-500.0,0.00055616,120]
[321113644,1711900307547,-500.0,0.00055616,120]
[321113645,1711900307557,-500.0,0.00055616,120]
[321113646,1711900307567,-500.0,0.00055616,120]
[321113647,1711900307578,-844.59,0.00055616,120]
[321113648,1711900307588,-519.79,0.00055616,120]
[321113649,1711900307598,-729.88,0.00055616,120]
[321113650,1711900307608,-502.45471212,0.00055616,120]
[321113651,1711900307618,-539.07,0.00055616,120]
[321113652,1711900307628,-915.41,0.00055616,120]
[321113653,1711900307638,-500.0,0.00055616,120]
[321113654,1711900307648,-500.0,0.00055616,120]
[321113655,1711900307659,-500.0,0.00055616,120]
[321113656,1711900307669,-500.0,0.00055616,120]
[321113657,1711900307679,-500.0,0.00055616,120]
[321113658,1711900307689,-771.12,0.00055616,120]
[321113659,1711900307699,-500.0,0.00055616,120]
[321113660,1711900307709,-500.0,0.00055616,120]
[321113661,1711900307718,-500.0,0.00055616,120]
[321113662,1711900307728,-500.0,0.00055616,120]
[321113663,1711900307738,-500.0,0.00055616,120]
[321113664,1711900307747,-544.62,0.00055616,120]
[321113665,1711900307757,-618.81,0.00055616,120]
[321113666,1711900307766,-560.35,0.00055616,120]
[321113667,1711900307776,-500.0,0.00055616,120]
[321113668,1711900307785,-500.0,0.00055616,120]
[321113669,1711900307795,-500.0,0.00055616,120]
[321113670,1711900307805,-500.0,0.00055616,120]
[321113671,1711900307815,-500.0,0.00055616,120]
[321113672,1711900307824,-500.0,0.00055616,120]
[321113673,1711900307834,-500.0,0.00055616,120]
[321113674,1711900307844,-150.0,0.00055616,120]
[321113675,1711900307854,-500.0,0.00055616,120]
[321113676,1711900307863,-500.0,0.00055616,120]
[321113677,1711900307873,-531.31804802,0.00055616,120]
[321113678,1711900307883,-500.0,0.00055616,120]
[321113679,1711900307892,-500.0,0.00055616,120]
[321113680,1711900307902,-500.0,0.00055616,120]
[321113681,1711900307911,-500.0,0.00055616,120]
[321113682,1711900307920,-500.0,0.00055616,120]
[321113683,1711900307929,-500.48782001,0.00055616,120]
[321113684,1711900307939,-500.0,0.00055616,120]
[321113685,1711900307949,-500.0,0.00055616,120]
[321113686,1711900307958,-860.0,0.00055616,120]
[321113687,1711900307977,-500.0,0.00055616,120]
[321113688,1711900307999,-500.0,0.00055616,120]
[321113689,1711900308016,-506.89141241,0.00055616,120]
[321113690,1711900308039,-502.54337558,0.00055616,120]
[321113691,1711900308056,-500.0,0.00055616,120]
[321113692,1711900308075,-500.0,0.00055616,120]
[321113693,1711900308094,-500.0,0.00055616,120]
[321113694,1711900308113,-500.0,0.00055616,120]
[321113695,1711900308134,-881.22,0.00055616,120]
[321113696,1711900308155,-500.0,0.00055616,120]
[321113697,1711900308175,-500.0,0.00055616,120]
[321113698,1711900308196,-500.0,0.00055616,120]
[321113699,1711900308210,-500.0,0.00055616,120]
[321113700,1711900308227,-644.32,0.00055616,120]
[321113701,1711900308247,-500.0,0.00055616,120]
[321113702,1711900308262,-500.0,0.00055616,120]
[321113703,1711900308282,-500.0,0.00055616,120]
[321113704,1711900308300,-500.0,0.00055616,120]
[321113705,1711900308319,-500.0,0.00055616,120]
[321113706,1711900308336,-500.0,0.00055616,120]
[321113707,1711900308356,-512.9010783,0.00055616,120]
[321113708,1711900308373,-500.0,0.00055616,120]
[321113709,1711900308390,-500.0,0.00055616,120]
[321113710,1711900308407,-500.0,0.00055616,120]
[321113711,1711900308423,-626.18154881,0.00055616,120]
[321113712,1711900308441,-500.0,0.00055616,120]
[321113713,1711900308458,-500.0,0.00055616,120]
[321113714,1711900308474,-1276.69,0.00055616,120]